[Event "European Online Club-ch-B 2021"]
[Site "Online"]
[Date "2021.03.27"]
[Round "4.5"]
[White "Sorensen, Hampus"]
[Black "Efimov, Igor"]
[Result "1/2-1/2"]
[ECO "E10"]
[WhiteElo "2395"]
[BlackElo "2416"]
[Annotator "NA"]
[PlyCount "93"]
[EventDate "2021.03.27"]
[EventType "team-tourn"]
[EventCountry "NET"]
[SourceTitle "playchess.com"]
[Source "ChessBase"]
[SourceQuality "1"]
[TimeControl "900+5"]

1. d4 {[%emt 0:00:00]} Nf6 {[%emt 0:00:05]} 2. c4 {[%emt 0:00:02]} e6 {[%emt 0:00:02]} 3. Nf3 {[%emt 0:00:02]} a6 {[%emt 0:00:03]} 4. Nc3 {[%emt 0:00:28]} c5 {[%emt 0:00:02]} 5. d5 {[%emt 0:00:16]} exd5 {[%emt 0:00:03]} 6. cxd5 {[%emt 0:00:01]} b5 {[%emt 0:00:02]} 7. e4 {[%emt 0:01:24]} d6 {[%emt 0:00:21]} 8. Bd3 {[%emt 0:00:05]} Bg4 {[%emt 0:00:09]} 9. a4 {[%emt 0:00:07]} b4 {[%emt 0:00:30]} 10. Nb1 {[%emt 0:00:06]} Nbd7 {[%emt 0:00:06]} 11. Nbd2 {[%emt 0:00:09]} g6 {[%emt 0:00:26]} 12. b3 {[%emt 0:00:09]} Bg7 {[%emt 0:00:02]} 13. Bb2 {[%emt 0:00:01]} O-O {[%emt 0:00:03]} 14. Qc2 {[%emt 0:00:08]} Nh5 {[%emt 0:00:19]} 15. O-O {[%emt 0:01:05]} Bxb2 {[%emt 0:00:05]} 16. Qxb2 {[%emt 0:00:01]} Nf4 {[%emt 0:00:02]} 17. Bc4 {[%emt 0:00:11]} Re8 {[%emt 0:00:10]} 18. Rae1 {[%emt 0:00:07]} a5 {[%emt 0:00:20]} 19. Bb5 {[%emt 0:01:05]} Rb8 {[%emt 0:00:23]} 20. Bxd7 {[%emt 0:01:01]} Qxd7 {[%emt 0:00:11]} 21. Re3 {[%emt 0:00:04]} Bxf3 {[%emt 0:00:12]} 22. Nxf3 {[%emt 0:00:38]} Qg4 {[%emt 0:00:26]} 23. g3 {[%emt 0:00:11]} Nh3+ {[%emt 0:00:07]} 24. Kg2 {[%emt 0:00:06]} Rxe4 {[%emt 0:00:03]} 25. Rxe4 {[%emt 0:00:48]} Qxe4 {[%emt 0:00:02]} 26. Qf6 {[%emt 0:00:43]} Qxd5 {[%emt 0:00:31]} 27. Kxh3 {[%emt 0:00:09]} Qxb3 {[%emt 0:00:08]} 28. Qxd6 {[%emt 0:00:16]} Qe6+ {[%emt 0:00:14]} 29. Qxe6 {[%emt 0:00:07]} fxe6 {[%emt 0:00:02]} 30. Nd2 {[%emt 0:03:30]} b3 {[%emt 0:00:02]} 31. Rb1 {[%emt 0:00:43]} b2 {[%emt 0:00:02]} 32. Nc4 {[%emt 0:00:02]} Rb4 {[%emt 0:00:02]} 33. Nxa5 {[%emt 0:00:09]} c4 {[%emt 0:00:31]} 34. Nxc4 {[%emt 0:01:00]} Rxc4 {[%emt 0:00:02]} 35. Rxb2 {[%emt 0:00:01]} Rxa4 {[%emt 0:00:02]} 36. Rb7 {[%emt 0:00:02]} Re4 {[%emt 0:00:14]} 37. f4 {[%emt 0:00:11]} Re2 {[%emt 0:00:07]} 38. g4 {[%emt 0:00:18]} e5 {[%emt 0:00:06]} 39. fxe5 {[%emt 0:01:09]} Rxe5 {[%emt 0:00:03]} 40. Kg3 {[%emt 0:00:04]} Rc5 {[%emt 0:00:12]} 41. h4 {[%emt 0:00:08]} h6 {[%emt 0:00:02]} 42. Rb8+ {[%emt 0:00:11]} Kg7 {[%emt 0:00:03]} 43. Rb7+ {[%emt 0:00:01]} Kf6 {[%emt 0:00:02]} 44. Rb6+ {[%emt 0:00:02]} Kg7 {[%emt 0:00:03]} 45. Rb7+ {[%emt 0:00:02]} Kf6 {[%emt 0:00:01]} 46. Rb6+ {[%emt 0:00:01]} Kg7 {[%emt 0:00:01]} 47. Rb7+ {[%emt 0:00:01]} 1/2-1/2

[Event "European Online Club-ch-B 2021"]
[Site "Online"]
[Date "2021.03.27"]
[Round "4.6"]
[White "Bagheri, Amir"]
[Black "Agrest, Inna"]
[Result "1-0"]
[ECO "D03"]
[WhiteElo "2348"]
[BlackElo "2285"]
[Annotator "NA"]
[PlyCount "69"]
[EventDate "2021.03.27"]
[EventType "team-tourn"]
[EventCountry "NET"]
[SourceTitle "playchess.com"]
[Source "ChessBase"]
[SourceQuality "1"]
[TimeControl "900+5"]

1. d4 {[%emt 0:00:00]} Nf6 {[%emt 0:00:03]} 2. Nf3 {[%emt 0:00:03]} g6 {[%emt 0:00:02]} 3. Bg5 {[%emt 0:00:02]} Bg7 {[%emt 0:00:01]} 4. Nbd2 {[%emt 0:00:01]} d5 {[%emt 0:00:05]} 5. e3 {[%emt 0:00:04]} O-O {[%emt 0:00:02]} 6. Bd3 {[%emt 0:00:35]} c5 {[%emt 0:00:39]} 7. c3 {[%emt 0:00:03]} Nc6 {[%emt 0:00:09]} 8. O-O {[%emt 0:00:02]} b6 {[%emt 0:00:11]} 9. Qb1 {[%emt 0:00:07]} Bb7 {[%emt 0:00:27]} 10. b4 {[%emt 0:00:02]} cxb4 {[%emt 0:01:04]} 11. cxb4 {[%emt 0:00:03]} Rc8 {[%emt 0:00:04]} 12. Rc1 {[%emt 0:00:25]} Qd6 {[%emt 0:01:16]} 13. a3 {[%emt 0:00:50]} Nd7 {[%emt 0:00:54]} 14. Bf4 {[%emt 0:02:17]} e5 {[%emt 0:00:43]} 15. dxe5 {[%emt 0:01:05]} Ncxe5 {[%emt 0:00:10]} 16. Rxc8 {[%emt 0:00:22]} Rxc8 {[%emt 0:00:08]} 17. Nd4 {[%emt 0:00:39]} Qe7 {[%emt 0:01:08]} 18. Bb5 {[%emt 0:00:18]} Nc4 {[%emt 0:00:35]} 19. N2f3 {[%emt 0:00:13]} Nf6 {[%emt 0:01:45]} 20. Qa2 {[%emt 0:00:41]} Ne4 {[%emt 0:00:30]} 21. Rc1 {[%emt 0:00:05]} a6 {[%emt 0:02:45]} 22. Ba4 {[%emt 0:00:21]} Qf6 {[%emt 0:00:48]} 23. h3 {[%emt 0:01:10]} g5 {[%emt 0:00:44]} 24. Bh2 {[%emt 0:00:07]} h5 {[%emt 0:00:13]} 25. Bd7 {[%emt 0:00:21]} Rd8 {[%emt 0:00:25]} 26. Bf5 {[%emt 0:00:04]} Ned6 {[%emt 0:00:43]} 27. g4 {[%emt 0:01:13]} b5 {[%emt 0:00:37]} 28. a4 {[%emt 0:00:20]} Bf8 {[%emt 0:00:46]} 29. axb5 {[%emt 0:00:04]} axb5 {[%emt 0:00:01]} 30. Qb1 {[%emt 0:00:21]} Ne4 {[%emt 0:00:16]} 31. Qd3 {[%emt 0:01:32]} Ra8 {[%emt 0:00:08]} 32. Nxb5 {[%emt 0:00:22]} Ncd6 {[%emt 0:00:12]} 33. Nxd6 {[%emt 0:00:09]} Nxd6 {[%emt 0:00:01]} 34. Bh7+ {[%emt 0:00:08]} Kg7 {[%emt 0:00:04]} 35. Be5 {[%emt 0:00:02]} 1-0

[Event "European Online Club-ch-B 2021"]
[Site "Online"]
[Date "2021.03.27"]
[Round "4.7"]
[White "Wengholm, Anders"]
[Black "Villegas, Pierre"]
[Result "1-0"]
[ECO "A09"]
[WhiteElo "2198"]
[BlackElo "2367"]
[Annotator "NA"]
[PlyCount "81"]
[EventDate "2021.03.27"]
[EventType "team-tourn"]
[EventCountry "NET"]
[SourceTitle "playchess.com"]
[Source "ChessBase"]
[SourceQuality "1"]
[TimeControl "900+5"]

1. Nf3 {[%emt 0:00:00]} d5 {[%emt 0:00:04]} 2. g3 {[%emt 0:00:10]} Nf6 {[%emt 0:00:03]} 3. Bg2 {[%emt 0:00:01]} c5 {[%emt 0:00:03]} 4. O-O {[%emt 0:00:04]} Nc6 {[%emt 0:00:32]} 5. c4 {[%emt 0:00:13]} d4 {[%emt 0:00:06]} 6. e3 {[%emt 0:00:05]} e5 {[%emt 0:00:10]} 7. exd4 {[%emt 0:00:02]} exd4 {[%emt 0:00:01]} 8. d3 {[%emt 0:00:05]} Be7 {[%emt 0:00:04]} 9. Re1 {[%emt 0:00:10]} O-O {[%emt 0:00:06]} 10. Bg5 {[%emt 0:00:29]} h6 {[%emt 0:00:20]} 11. Bxf6 {[%emt 0:00:02]} Bxf6 {[%emt 0:00:01]} 12. Nbd2 {[%emt 0:00:11]} Bf5 {[%emt 0:00:05]} 13. Ne4 {[%emt 0:00:03]} Be7 {[%emt 0:00:01]} 14. a3 {[%emt 0:00:14]} Qd7 {[%emt 0:00:19]} 15. Rb1 {[%emt 0:00:10]} Rfe8 {[%emt 0:00:40]} 16. Qa4 {[%emt 0:00:11]} Bf8 {[%emt 0:01:20]} 17. Nh4 {[%emt 0:00:32]} Bh7 {[%emt 0:00:03]} 18. f4 {[%emt 0:02:02]} f5 {[%emt 0:01:55]} 19. Nd2 {[%emt 0:00:19]} Rxe1+ {[%emt 0:00:03]} 20. Rxe1 {[%emt 0:00:03]} Re8 {[%emt 0:00:02]} 21. Qd1 {[%emt 0:00:17]} g5 {[%emt 0:01:23]} 22. Bd5+ {[%emt 0:00:13]} Kh8 {[%emt 0:00:03]} 23. Ng2 {[%emt 0:00:03]} gxf4 {[%emt 0:03:07]} 24. Nxf4 {[%emt 0:00:06]} Bd6 {[%emt 0:00:45]} 25. Nf3 {[%emt 0:06:28]} Re3 {[%emt 0:01:33]} 26. Ng2 {[%emt 0:00:25]} Re7 {[%emt 0:00:16]} 27. Qd2 {[%emt 0:00:16]} Rxe1+ {[%emt 0:00:45]} 28. Nfxe1 {[%emt 0:00:23]} Bf8 {[%emt 0:00:36]} 29. Qe2 {[%emt 0:00:07]} Bg7 {[%emt 0:00:57]} 30. Nf3 {[%emt 0:00:03]} Bg8 {[%emt 0:00:28]} 31. Nf4 {[%emt 0:00:33]} Bxd5 {[%emt 0:00:16]} 32. cxd5 {[%emt 0:00:03]} Nd8 {[%emt 0:00:07]} 33. Ne5 {[%emt 0:01:10]} Bxe5 {[%emt 0:00:46]} 34. Qxe5+ {[%emt 0:00:03]} Kh7 {[%emt 0:00:05]} 35. Ne6 {[%emt 0:00:16]} Nxe6 {[%emt 0:00:19]} 36. dxe6 {[%emt 0:00:01]} Qa4 {[%emt 0:00:02]} 37. Qxf5+ {[%emt 0:00:02]} Kg7 {[%emt 0:00:03]} 38. Qf7+ {[%emt 0:00:07]} Kh8 {[%emt 0:00:02]} 39. e7 {[%emt 0:00:11]} Qd1+ {[%emt 0:00:03]} 40. Kg2 {[%emt 0:00:02]} Qe2+ {[%emt 0:00:01]} 41. Kh3 {[%emt 0:00:02]} 1-0

[Event "European Online Club-ch-B 2021"]
[Site "Online"]
[Date "2021.03.27"]
[Round "4.8"]
[White "Meylan, Andre"]
[Black "Bjorklund, Thomas"]
[Result "1-0"]
[ECO "B85"]
[WhiteElo "2205"]
[BlackElo "2174"]
[Annotator "NA"]
[PlyCount "189"]
[EventDate "2021.03.27"]
[EventType "team-tourn"]
[EventCountry "NET"]
[SourceTitle "playchess.com"]
[Source "ChessBase"]
[SourceQuality "1"]
[TimeControl "900+5"]

1. e4 {[%emt 0:00:00]} c5 {[%emt 0:00:06]} 2. Nf3 {[%emt 0:00:02]} d6 {[%emt 0:00:03]} 3. d4 {[%emt 0:00:01]} cxd4 {[%emt 0:00:01]} 4. Nxd4 {[%emt 0:00:00]} Nf6 {[%emt 0:00:01]} 5. Nc3 {[%emt 0:00:02]} a6 {[%emt 0:00:02]} 6. a4 {[%emt 0:00:02]} Nc6 {[%emt 0:00:04]} 7. Be2 {[%emt 0:00:08]} e6 {[%emt 0:00:02]} 8. O-O {[%emt 0:00:05]} Be7 {[%emt 0:00:02]} 9. Be3 {[%emt 0:00:03]} O-O {[%emt 0:00:01]} 10. f4 {[%emt 0:00:03]} Bd7 {[%emt 0:00:04]} 11. Bf3 {[%emt 0:00:08]} Rc8 {[%emt 0:00:02]} 12. Nb3 {[%emt 0:00:06]} e5 {[%emt 0:00:07]} 13. f5 {[%emt 0:00:58]} Na5 {[%emt 0:00:07]} 14. Nxa5 {[%emt 0:00:41]} Qxa5 {[%emt 0:00:04]} 15. Qd2 {[%emt 0:00:16]} Qb4 {[%emt 0:00:18]} 16. Ra3 {[%emt 0:02:17]} Qc4 {[%emt 0:00:25]} 17. Rb3 {[%emt 0:00:41]} b5 {[%emt 0:00:08]} 18. Be2 {[%emt 0:02:14]} Nxe4 {[%emt 0:00:09]} 19. Bxc4 {[%emt 0:01:25]} Nxd2 {[%emt 0:00:03]} 20. Bxf7+ {[%emt 0:00:06]} Rxf7 {[%emt 0:00:08]} 21. Bxd2 {[%emt 0:00:00]} bxa4 {[%emt 0:00:05]} 22. Rb6 {[%emt 0:00:34]} Rxf5 {[%emt 0:00:18]} 23. Rb7 {[%emt 0:02:38]} Rxf1+ {[%emt 0:00:22]} 24. Kxf1 {[%emt 0:00:00]} Rd8 {[%emt 0:00:29]} 25. Ra7 {[%emt 0:01:08]} Kf8 {[%emt 0:00:28]} 26. Rxa6 {[%emt 0:00:24]} Rb8 {[%emt 0:00:08]} 27. Ra7 {[%emt 0:00:39]} Ke8 {[%emt 0:00:07]} 28. Bc1 {[%emt 0:00:27]} Bf5 {[%emt 0:01:02]} 29. Nd5 {[%emt 0:00:30]} Bf6 {[%emt 0:00:09]} 30. c3 {[%emt 0:00:23]} Bc2 {[%emt 0:00:23]} 31. Ke1 {[%emt 0:00:29]} Be4 {[%emt 0:00:24]} 32. Nxf6+ {[%emt 0:00:36]} gxf6 {[%emt 0:00:03]} 33. g3 {[%emt 0:00:14]} d5 {[%emt 0:01:10]} 34. Rxa4 {[%emt 0:00:07]} Kd7 {[%emt 0:00:03]} 35. Ra6 {[%emt 0:00:14]} Rf8 {[%emt 0:00:16]} 36. b4 {[%emt 0:00:07]} f5 {[%emt 0:00:07]} 37. Be3 {[%emt 0:00:07]} f4 {[%emt 0:00:03]} 38. gxf4 {[%emt 0:00:01]} exf4 {[%emt 0:00:02]} 39. Bc5 {[%emt 0:00:06]} Rg8 {[%emt 0:00:02]} 40. Rf6 {[%emt 0:00:05]} f3 {[%emt 0:00:07]} 41. b5 {[%emt 0:00:06]} Ra8 {[%emt 0:00:06]} 42. b6 {[%emt 0:00:09]} Ra1+ {[%emt 0:00:05]} 43. Kf2 {[%emt 0:00:03]} Rb1 {[%emt 0:00:02]} 44. h4 {[%emt 0:00:05]} Rb2+ {[%emt 0:00:06]} 45. Kg3 {[%emt 0:00:02]} Rg2+ {[%emt 0:00:06]} 46. Kh3 {[%emt 0:00:01]} Rb2 {[%emt 0:00:06]} 47. h5 {[%emt 0:00:03]} Rb3 {[%emt 0:00:05]} 48. Bd4 {[%emt 0:00:09]} Ke7 {[%emt 0:00:02]} 49. Rf4 {[%emt 0:00:07]} Kd7 {[%emt 0:00:06]} 50. Kg3 {[%emt 0:00:04]} Rb1 {[%emt 0:00:02]} 51. Rf7+ {[%emt 0:00:07]} Kc6 {[%emt 0:00:03]} 52. Rf6+ {[%emt 0:00:01]} Kd7 {[%emt 0:00:02]} 53. Rf7+ {[%emt 0:00:02]} Ke6 {[%emt 0:00:02]} 54. Rf6+ {[%emt 0:00:09]} Ke7 {[%emt 0:00:01]} 55. Rf4 {[%emt 0:00:01]} Rb2 {[%emt 0:00:07]} 56. c4 {[%emt 0:00:11]} Rg2+ {[%emt 0:00:05]} 57. Kh3 {[%emt 0:00:02]} Kd7 {[%emt 0:00:03]} 58. cxd5 {[%emt 0:00:04]} Bxd5 {[%emt 0:00:02]} 59. Rf6 {[%emt 0:00:07]} Rd2 {[%emt 0:00:06]} 60. Be3 {[%emt 0:00:05]} Rd3 {[%emt 0:00:04]} 61. Bf2 {[%emt 0:00:04]} Rd2 {[%emt 0:00:06]} 62. Kg3 {[%emt 0:00:02]} Rb2 {[%emt 0:00:03]} 63. h6 {[%emt 0:00:03]} Be4 {[%emt 0:00:03]} 64. Rf7+ {[%emt 0:00:11]} Ke6 {[%emt 0:00:04]} 65. Rf4 {[%emt 0:00:05]} Bc6 {[%emt 0:00:05]} 66. Bd4 {[%emt 0:00:08]} Rb5 {[%emt 0:00:05]} 67. Rf6+ {[%emt 0:00:05]} Kd5 {[%emt 0:00:02]} 68. Bf2 {[%emt 0:00:03]} Be8 {[%emt 0:00:09]} 69. Rf5+ {[%emt 0:00:07]} Kd6 {[%emt 0:00:06]} 70. Rxf3 {[%emt 0:00:04]} Kc6 {[%emt 0:00:10]} 71. Rc3+ {[%emt 0:00:04]} Kb7 {[%emt 0:00:03]} 72. Rc7+ {[%emt 0:00:02]} Kb8 {[%emt 0:00:02]} 73. Rxh7 {[%emt 0:00:05]} Rg5+ {[%emt 0:00:03]} 74. Kf4 {[%emt 0:00:05]} Rg6 {[%emt 0:00:06]} 75. Rh8 {[%emt 0:00:05]} Kb7 {[%emt 0:00:03]} 76. Rxe8 {[%emt 0:00:05]} Rxh6 {[%emt 0:00:03]} 77. Re7+ {[%emt 0:00:04]} Kb8 {[%emt 0:00:02]} 78. Bd4 {[%emt 0:00:06]} Rh4+ {[%emt 0:00:08]} 79. Ke3 {[%emt 0:00:05]} Rh3+ {[%emt 0:00:02]} 80. Ke4 {[%emt 0:00:03]} Rb3 {[%emt 0:00:03]} 81. Kd5 {[%emt 0:00:06]} Kc8 {[%emt 0:00:04]} 82. Bc5 {[%emt 0:00:05]} Kd8 {[%emt 0:00:21]} 83. Rh7 {[%emt 0:00:03]} Rg3 {[%emt 0:00:09]} 84. b7 {[%emt 0:00:07]} Rb3 {[%emt 0:00:02]} 85. Kc6 {[%emt 0:00:05]} Ke8 {[%emt 0:00:04]} 86. b8=Q+ {[%emt 0:00:04]} Rxb8 {[%emt 0:00:03]} 87. Rh8+ {[%emt 0:00:00]} Kf7 {[%emt 0:00:02]} 88. Rxb8 {[%emt 0:00:02]} Ke6 {[%emt 0:00:00]} 89. Re8+ {[%emt 0:00:02]} Kf5 {[%emt 0:00:00]} 90. Kd5 {[%emt 0:00:02]} Kg4 {[%emt 0:00:02]} 91. Rf8 {[%emt 0:00:03]} Kh3 {[%emt 0:00:01]} 92. Rg8 {[%emt 0:00:01]} Kh2 {[%emt 0:00:02]} 93. Ke4 {[%emt 0:00:02]} Kh1 {[%emt 0:00:00]} 94. Kf3 {[%emt 0:00:02]} Kh2 {[%emt 0:00:03]} 95. Rh8# {[%emt 0:00:02]} 1-0

[Event "European Online Club-ch-B 2021"]
[Site "Online"]
[Date "2021.03.27"]
[Round "4.9"]
[White "Brunner, Nicolas"]
[Black "Gorodetzky, David"]
[Result "1-0"]
[ECO "D66"]
[WhiteElo "2418"]
[BlackElo "2495"]
[Annotator "ChessBase"]
[PlyCount "85"]
[EventDate "2021.03.27"]
[EventType "team-tourn"]
[EventCountry "NET"]
[SourceTitle "playchess.com"]
[Source "ChessBase"]
[SourceQuality "1"]
[TimeControl "900+5"]

1. d4 {[%emt 0:00:00]} Nf6 {[%emt 0:00:05]} 2. c4 {[%emt 0:00:01]} e6 {[%emt 0:00:01]} 3. Nf3 {[%emt 0:00:02]} d5 {[%emt 0:00:02]} 4. Nc3 {[%emt 0:00:01]} c6 {[%emt 0:00:09]} 5. Bg5 {[%emt 0:00:01]} h6 {[%emt 0:00:03]} 6. Bh4 {[%emt 0:00:01]} Be7 {[%emt 0:00:11]} 7. e3 {[%emt 0:00:04]} Nbd7 {[%emt 0:00:06]} 8. Rc1 {[%emt 0:00:07]} O-O {[%emt 0:00:50]} 9. Bd3 {[%emt 0:00:02]} dxc4 {[%emt 0:00:24]} 10. Bxc4 {[%emt 0:00:02]} b5 {[%emt 0:00:02]} 11. Bd3 {[%emt 0:00:14]} Bb7 {[%emt 0:00:35]} 12. O-O {[%emt 0:00:04]} a6 {[%emt 0:00:18]} 13. a4 {[%emt 0:00:04]} Rc8 {[%emt 0:00:17]} 14. Bxf6 {[%emt 0:00:57]} Nxf6 {[%emt 0:03:11]} 15. Ne5 {[%emt 0:02:02]} b4 {[%emt 0:00:34]} 16. Ne4 {[%emt 0:00:06]} c5 {[%emt 0:00:07]} 17. Nxc5 {[%emt 0:00:43]} Bxc5 {[%emt 0:00:31]} 18. dxc5 {[%emt 0:00:15]} Qd5 {[%emt 0:00:22]} 19. Qf3 {[%emt 0:02:31]} Qxe5 {[%emt 0:03:06]} 20. Qxb7 {[%emt 0:00:03]} a5 {[%emt 0:00:32]} 21. c6 {[%emt 0:02:33]} Qxb2 {[%emt 0:02:05]} 22. c7 {[%emt 0:00:19]} Nd5 {[%emt 0:00:25]} 23. Rc5 {[%emt 0:01:18]} Qe5 {[%emt 0:02:38]} 24. Rfc1 {[%emt 0:00:32]} b3 {[%emt 0:00:03]} 25. Qxb3 {[%emt 0:00:48]} Rxc7 {[%emt 0:00:03]} 26. Rxc7 {[%emt 0:00:32]} Nxc7 {[%emt 0:00:00]} 27. Qb6 {[%emt 0:00:45]} Rd8 {[%emt 0:00:22]} 28. Bf1 {[%emt 0:00:31]} Rd7 {[%emt 0:00:04]} 29. g3 {[%emt 0:00:09]} g6 {[%emt 0:00:13]} 30. Rc5 {[%emt 0:00:27]} Nd5 {[%emt 0:00:05]} 31. Qxa5 {[%emt 0:00:03]} Kg7 {[%emt 0:00:06]} 32. Qb5 {[%emt 0:00:34]} Qd6 {[%emt 0:00:05]} 33. Rc6 {[%emt 0:00:12]} Qe7 {[%emt 0:00:04]} 34. Qb2+ {[%emt 0:00:03]} e5 {[%emt 0:00:05]} 35. a5 {[%emt 0:00:17]} Rb7 {[%emt 0:00:02]} 36. Qa1 {[%emt 0:00:06]} Ra7 {[%emt 0:00:07]} 37. a6 {[%emt 0:00:04]} Nb4 {[%emt 0:00:02]} 38. Rb6 {[%emt 0:00:17]} Nd5 {[%emt 0:00:09]} 39. Rb5 {[%emt 0:00:27]} Nb4 {[%emt 0:00:06]} 40. Qxe5+ {[%emt 0:00:18]} Qxe5 {[%emt 0:00:03]} 41. Rxe5 {[%emt 0:00:01]} Kf6 {[%emt 0:00:00]} 42. Rb5 {[%emt 0:00:05]} Nc6 {[%emt 0:00:02]} 43. Rb6 {[%emt 0:00:03]} 1-0

[Event "European Online Club-ch-B 2021"]
[Site "Online"]
[Date "2021.03.27"]
[Round "4.10"]
[White "Parkhov, Yair"]
[Black "Mathieu, Phileas"]
[Result "1-0"]
[ECO "A30"]
[WhiteElo "2407"]
[BlackElo "2240"]
[Annotator "NA"]
[PlyCount "161"]
[EventDate "2021.03.27"]
[EventType "team-tourn"]
[EventCountry "NET"]
[SourceTitle "playchess.com"]
[Source "ChessBase"]
[SourceQuality "1"]
[TimeControl "900+5"]

1. c4 {[%emt 0:00:00]} c5 {[%emt 0:00:10]} 2. Nf3 {[%emt 0:00:02]} Nc6 {[%emt 0:00:02]} 3. d4 {[%emt 0:00:03]} cxd4 {[%emt 0:00:08]} 4. Nxd4 {[%emt 0:00:02]} Qb6 {[%emt 0:00:02]} 5. Nc2 {[%emt 0:00:56]} e6 {[%emt 0:00:31]} 6. Nc3 {[%emt 0:00:09]} Nf6 {[%emt 0:00:07]} 7. e3 {[%emt 0:00:20]} Be7 {[%emt 0:01:01]} 8. Be2 {[%emt 0:00:02]} O-O {[%emt 0:00:02]} 9. O-O {[%emt 0:00:03]} Rd8 {[%emt 0:00:06]} 10. e4 {[%emt 0:00:20]} Nb4 {[%emt 0:01:45]} 11. Be3 {[%emt 0:00:17]} Qa5 {[%emt 0:00:06]} 12. Nd4 {[%emt 0:02:15]} Nc6 {[%emt 0:01:37]} 13. a3 {[%emt 0:00:50]} Nxd4 {[%emt 0:00:35]} 14. Qxd4 {[%emt 0:00:11]} d6 {[%emt 0:00:31]} 15. b4 {[%emt 0:01:00]} Qc7 {[%emt 0:00:03]} 16. Rac1 {[%emt 0:02:37]} Bd7 {[%emt 0:00:44]} 17. Rfd1 {[%emt 0:00:07]} a6 {[%emt 0:00:19]} 18. f3 {[%emt 0:00:26]} Rac8 {[%emt 0:00:06]} 19. g4 {[%emt 0:01:28]} h6 {[%emt 0:00:10]} 20. Kg2 {[%emt 0:00:32]} Qb8 {[%emt 0:00:18]} 21. h4 {[%emt 0:01:31]} Be8 {[%emt 0:02:37]} 22. Qd2 {[%emt 0:01:19]} Nh7 {[%emt 0:00:47]} 23. g5 {[%emt 0:00:09]} hxg5 {[%emt 0:00:02]} 24. hxg5 {[%emt 0:00:00]} f6 {[%emt 0:00:05]} 25. f4 {[%emt 0:00:59]} b5 {[%emt 0:00:46]} 26. cxb5 {[%emt 0:00:12]} axb5 {[%emt 0:00:02]} 27. Bg4 {[%emt 0:00:06]} Nf8 {[%emt 0:00:05]} 28. Rh1 {[%emt 0:00:30]} fxg5 {[%emt 0:00:15]} 29. fxg5 {[%emt 0:00:23]} Bg6 {[%emt 0:00:02]} 30. Rcf1 {[%emt 0:00:29]} Qb7 {[%emt 0:00:48]} 31. Kg1 {[%emt 0:00:09]} Qd7 {[%emt 0:01:03]} 32. Qh2 {[%emt 0:00:04]} Nh7 {[%emt 0:01:11]} 33. Qh3 {[%emt 0:00:04]} Kh8 {[%emt 0:00:33]} 34. Bxe6 {[%emt 0:00:02]} Qe8 {[%emt 0:00:07]} 35. Bxc8 {[%emt 0:00:02]} Rxc8 {[%emt 0:00:01]} 36. Nd5 {[%emt 0:00:08]} Bf8 {[%emt 0:00:26]} 37. Nf4 {[%emt 0:00:02]} Bxe4 {[%emt 0:00:27]} 38. Rh2 {[%emt 0:00:04]} Rc3 {[%emt 0:00:14]} 39. Qg3 {[%emt 0:00:11]} Kg8 {[%emt 0:00:11]} 40. g6 {[%emt 0:00:06]} Bxg6 {[%emt 0:00:03]} 41. Nxg6 {[%emt 0:00:02]} Qxe3+ {[%emt 0:00:09]} 42. Qxe3 {[%emt 0:00:07]} Rxe3 {[%emt 0:00:02]} 43. Rxh7 {[%emt 0:00:06]} Kxh7 {[%emt 0:00:03]} 44. Nxf8+ {[%emt 0:00:02]} Kg8 {[%emt 0:00:01]} 45. Nd7 {[%emt 0:00:05]} g6 {[%emt 0:00:13]} 46. Rf8+ {[%emt 0:00:05]} Kg7 {[%emt 0:00:02]} 47. Rb8 {[%emt 0:00:02]} Rxa3 {[%emt 0:00:03]} 48. Rxb5 {[%emt 0:00:02]} Kf7 {[%emt 0:00:02]} 49. Nb8 {[%emt 0:00:12]} Ke6 {[%emt 0:00:06]} 50. Nc6 {[%emt 0:00:03]} Rd3 {[%emt 0:00:12]} 51. Kf2 {[%emt 0:00:07]} Kd7 {[%emt 0:00:03]} 52. Na5 {[%emt 0:00:02]} Rc3 {[%emt 0:00:06]} 53. Ke2 {[%emt 0:00:04]} Ke6 {[%emt 0:00:03]} 54. Kd2 {[%emt 0:00:02]} Rc7 {[%emt 0:00:02]} 55. Rg5 {[%emt 0:00:04]} Kf6 {[%emt 0:00:01]} 56. Rg1 {[%emt 0:00:04]} g5 {[%emt 0:00:02]} 57. Kd3 {[%emt 0:00:11]} Kf5 {[%emt 0:00:09]} 58. Rb1 {[%emt 0:00:05]} Ra7 {[%emt 0:00:03]} 59. Nc6 {[%emt 0:00:06]} Rb7 {[%emt 0:00:04]} 60. b5 {[%emt 0:00:02]} Rb6 {[%emt 0:00:07]} 61. Kd4 {[%emt 0:00:05]} g4 {[%emt 0:00:08]} 62. Ne7+ {[%emt 0:00:05]} Ke6 {[%emt 0:00:05]} 63. Nd5 {[%emt 0:00:02]} Rb7 {[%emt 0:00:02]} 64. b6 {[%emt 0:00:01]} g3 {[%emt 0:00:04]} 65. Re1+ {[%emt 0:00:06]} Kf5 {[%emt 0:00:13]} 66. Rf1+ {[%emt 0:00:15]} Kg4 {[%emt 0:00:04]} 67. Rf4+ {[%emt 0:00:08]} Kg5 {[%emt 0:00:04]} 68. Rf8 {[%emt 0:00:03]} Kg4 {[%emt 0:00:10]} 69. Ne3+ {[%emt 0:00:05]} Kh4 {[%emt 0:00:03]} 70. Rh8+ {[%emt 0:00:07]} Kg5 {[%emt 0:00:02]} 71. Rg8+ {[%emt 0:00:01]} Kf4 {[%emt 0:00:04]} 72. Rf8+ {[%emt 0:00:06]} Kg5 {[%emt 0:00:02]} 73. Rf5+ {[%emt 0:00:02]} Kg6 {[%emt 0:00:11]} 74. Rb5 {[%emt 0:00:02]} Kf6 {[%emt 0:00:04]} 75. Kd5 {[%emt 0:00:03]} Ke7 {[%emt 0:00:10]} 76. Kc6 {[%emt 0:00:02]} Rb8 {[%emt 0:00:01]} 77. b7 {[%emt 0:00:01]} Ke6 {[%emt 0:00:01]} 78. Kc7 {[%emt 0:00:06]} Rxb7+ {[%emt 0:00:07]} 79. Kxb7 {[%emt 0:00:02]} d5 {[%emt 0:00:04]} 80. Rxd5 {[%emt 0:00:02]} g2 {[%emt 0:00:01]} 81. Rg5 {[%emt 0:00:02]} 1-0